Cogmind - Beta 16 @@@ ROGUE MODE // 2025.11.19 @ 14:44:00 Player: Mozco Result: Destroyed by YI-UF0 with YI-UF0's Doublenader Performance ------------- Evolutions (0) 0 Regions Visited (4) 800 Robots Destroyed (15) 75 Value Destroyed (305) 305 Prototype IDs (23) 460 Alien Tech Used (0) 0 Bonus (300) 300 TOTAL SCORE: 1940 Bonus ------- Aligned with FarCom 300 Cogmind --------- Core Integrity 0/250 Matter 297/300 Energy 28/100 System Corruption 0% Temperature Warm (127) Movement Core (50) Location -9/Mines Parts ------- > --- POWER (1) -------- (None) > --- PROPULSION (2) --- (None) > --- UTILITY (2) ------ Core Shielding > --- WEAPON (2) ------- (None) > --- INVENTORY (5) ---- Wheel Particle Cannon Light Assault Rifle Mining Claw Peak State ------------ > --- POWER ------------ Light Ion Engine > --- PROPULSION ------- Wheel Wheel > --- UTILITY ---------- Humpback > --- WEAPON ----------- Beamcaster Particle Cannon > --- INVENTORY -------- Light Angular Momentum Engine Light Angular Momentum Engine Wheel Improved Heat Sink Large Storage Unit Experimental Sensor Array Improved Terrain Scanner Terrain Scan Processor 0b10 Alert Chip Salvage Targeting Computer Improved Targeting Computer Cloak of Protection Medium Armor Plating Light EM Pulse Cannon Latent Energy Streamer Beam Cannon Assault Rifle Light Assault Rifle Light Assault Rifle Grenade Launcher Rocket Launcher Mining Claw Mining Claw Mining Claw [Rating: 19] Favorites ----------- Power Ion Engine Engine Ion Engine Propulsion Wheel Wheel Wheel Utility Targeting Computer Storage Large Storage Unit Processor Targeting Computer Protection Medium Armor Plating Weapon Assault Rifle Energy Gun Beamcaster Energy Cannon Particle Cannon Ballistic Gun Assault Rifle Launcher Grenade Launcher Build | -11 -10 -10 -10 -9 ------- Run | Yrd Mat Min Exi Min Slots Evolved . | . . . . . Power . | . . . . . Propulsion . | . . . . . Utility . | . . . . . Weapon . | . . . . . Parts Attached 24 | 7 6 . 1 10 Power 3 | 1 1 . . 1 Engine 3 | 1 1 . . 1 Core . | . . . . . Reactor . | . . . . . Propulsion 6 | 2 2 . . 2 Treads . | . . . . . Leg . | . . . . . Wheel 6 | 2 2 . . 2 Hover . | . . . . . Flight . | . . . . . Utility 6 | 1 2 . 1 2 Device . | . . . . . Storage 3 | 1 1 . 1 . Processor 1 | . 1 . . . Hackware . | . . . . . Protection 2 | . . . . 2 Artifact . | . . . . . Weapon 9 | 3 1 . . 5 Energy Gun 1 | . . . . 1 Energy Cannon 3 | . . . . 3 Ballistic Gun 4 | 3 . . . 1 Ballistic Cannon . | . . . . . Launcher 1 | . 1 . . . Special Weapon . | . . . . . Impact Weapon . | . . . . . Slashing Weapon . | . . . . . Piercing Weapon . | . . . . . Special Melee Weapon . | . . . . . Unidentified Prototypes . | . . . . . Parts Lost 10 | . 1 . 1 8 Power 2 | . . . . 2 Propulsion 2 | . . . . 2 Utility 1 | . . . . 1 Weapon 5 | . 1 . 1 3 Highest Loss Streak 7 | . 1 . 1 7 To Critical Strikes . | . . . . . Average Backups 15 | . 10 15 15 22 Power 1 | . 1 1 1 1 Propulsion . | . . 1 1 . Utility 6 | . 5 5 5 9 Weapon 7 | . 4 7 7 9 Tool/Special . | . . . . . Unused Backups 26 | . 3 2 . 21 Power 2 | . . . . 2 Propulsion 1 | . 1 . . . Utility 16 | . 2 2 . 12 Weapon 7 | . . . . 7 Tool/Special . | . . . . . Average Slot Usage (%) 89 | . 98 100 90 73 Engine 11 | . 14 14 14 5 Wheel 27 | . 28 28 28 27 Storage 13 | . 14 14 14 12 Processor 7 | . 12 14 5 . Energy Cannon 4 | . . . . 17 Ballistic Gun 21 | . 27 28 27 3 Peak Build Rating 19 | 6 9 9 12 19 Average Rating 9 | 4 7 8 9 13 On Entrance 7 | . 6 9 9 11 Avg Prop Armor Cover (%) . | . . . . . Naked Turns . | . . . . . Heaviest Build 212 | 12 28 28 208 212 Greatest Support 26 | 26 26 20 20 26 Greatest Overweight (x) 10 | . 1 1 10 10 Average Overweight (x) 2 | . . 1 4 8 Largest Inventory Capacity 35 | 8 15 15 35 35 Average Capacity 22 | 7 14 15 27 31 Most Carried 29 | 2 15 15 19 29 Average Carried 15 | . 10 14 15 22 Final Capacity 35 | 8 15 15 35 5 Final Carried 19 | 2 15 15 19 4 Class Distribution -------------------- 59% | Mutant 40% | Hauler-Mutant Dominant Class ---------------- Mutant | -10/Materials Mutant | -10/Mines Hauler-Mutant | -10/Exiles Hauler-Mutant | -9/Mines Resources | -11 -10 -10 -10 -9 ----------- Run | Yrd Mat Min Exi Min Matter Collected 658 | 243 215 103 . 97 Remotely . | . . . . . Salvage Created 449 | . 318 . . 131 Parts 34 | . 28 . . 6 Haulers Intercepted 1 | . 1 . . . Recyclers Shooed 2 | . 2 . . . Parts Field Recycled . | . . . . . Retrieved Matter . | . . . . . Parts Self-Destructed . | . . . . . Prevented . | . . . . . Parts Restored . | . . . . . Kills | -11 -10 -10 -10 -9 ------- Run | Yrd Mat Min Exi Min Combat Hostiles Destroyed 10 | . 9 . . 1 Guns 3 | . 3 . . . Cannons 1 | . . . . 1 AOE 6 | . 6 . . . Classes Destroyed 7 | . 6 . . 1 Builder 1 | . 1 . . . Tunneler 1 | . 1 . . . Hauler 1 | . 1 . . . Recycler 2 | . 1 . . 1 Swarmer 3 | . 3 . . . Grunt 6 | . 6 . . . Sentry 1 | . . . . 1 Best Kill Streak 4 | . 4 . . 1 Combat Bots Only 4 | . 4 . . 1 Max Kills in Single Turn 2 | . 2 . . 1 Gunslinging . | . . . . . Exploded 2 | . 2 . . . Melee . | . . . . . Uniques/NPCs Destroyed . | . . . . . Combat | -11 -10 -10 -10 -9 -------- Run | Yrd Mat Min Exi Min Hostile Shots Fired 112 | . 69 . 21 22 Missed 28 | . 20 . 5 3 Hits 84 | . 49 . 16 19 Melee 8 | . . . 8 . Projectile 76 | . 49 . 8 19 AOE 18 | . . . . 18 Damage Taken 1538 | . 508 . 384 646 Core 253 | . 118 . 43 92 Absorbed by Shields . | . . . . . Redirected to Shielding 16 | . . . . 16 Core Remaining (%) 100 | 100 . . . . Volleys Fired 44 | . 33 . 1 10 Largest 2 | . 2 . 2 2 Hottest 131 | . 40 . 40 131 Shots Fired 76 | . 57 . 2 17 Gun 57 | . 49 . 2 6 Cannon 11 | . . . . 11 Launcher 8 | . 8 . . . Special . | . . . . . Kinetic 52 | . 49 . 2 1 Thermal 13 | . . . . 13 Explosive 8 | . 8 . . . Electromagnetic 3 | . . . . 3 Robot Hit Streak 7 | . 7 . . 5 Robot Miss Streak 3 | . 3 . . 1 Penetration Max . | . . . . . Secondary Targets . | . . . . . Shots Hit Robots 43 | . 31 . . 12 Core Hits 26 | . 23 . . 3 Critical Kills . | . . . . . Critical Parts Destroyed . | . . . . . Critical Strikes . | . . . . . Melee Attacks . | . . . . . Impact . | . . . . . Slashing . | . . . . . Piercing . | . . . . . Sneak Attacks . | . . . . . Combat Hostiles . | . . . . . Follow-up Attacks . | . . . . . Damage Inflicted 1180 | . 948 . . 232 Guns 490 | . 428 . . 62 Cannons 170 | . . . . 170 Explosions 520 | . 520 . . . Melee . | . . . . . Ramming . | . . . . . Kinetic 428 | . 428 . . . Thermal 174 | . . . . 174 Explosive 520 | . 520 . . . Electromagnetic 58 | . . . . 58 Impact . | . . . . . Slashing . | . . . . . Piercing . | . . . . . Highest Corruption . | . . . . . Average Corruption . | . . . . . Corruption Purged . | . . . . . Corruption Blocked . | . . . . . Overload Shots . | . . . . . Overflow Damage 15 | . 15 . . . Projectiles . | . . . . . Explosions 15 | . 15 . . . Melee . | . . . . . Knockbacks . | . . . . . Impact . | . . . . . Kinetic . | . . . . . Secondary . | . . . . . Self-Inflicted Damage . | . . . . . Shots . | . . . . . Rammed . | . . . . . Targets Rammed . | . . . . . Kicked . | . . . . . Crushed . | . . . . . Highest Temperature 282 | . 6 . . 282 Average Temperature 88 | . 3 . . 118 Received Heat Transfer 222 | . 204 . . 18 Siege Activations . | . . . . . Martial Activations . | . . . . . Shielding Activations . | . . . . . Robots Disrupted . | . . . . . Combat Hostiles . | . . . . . Robots Corrupted . | . . . . . Combat Hostiles . | . . . . . Parts Fried . | . . . . . Impact Corruptions . | . . . . . Robots Melted . | . . . . . Combat Hostiles . | . . . . . Parts Melted . | . . . . . Heat Transferred 333 | . . . . 333 Parts Sabotaged . | . . . . . Parts Stolen . | . . . . . Parts Stripped . | . . . . . Power Chain Reactions . | . . . . . Alert | -11 -10 -10 -10 -9 ------- Run | Yrd Mat Min Exi Min Maximum Alert Level . | . . . . . Low Security (%) 100 | 100 100 100 . 100 Level 1 . | . . . . . Level 2 . | . . . . . Level 3 . | . . . . . Level 4 . | . . . . . Level 5 . | . . . . . High Security . | . . . . . Max Security . | . . . . . Peak Influence 169 | . 169 23 . 20 Initial 23 | . . 23 . . Average 27 | . 81 2 . . Influence Increases 285 | . 260 . . 25 Destroy 0b10 Robot/C 200 | . 180 . . 20 Destroy 0b10 Robot/NC 25 | . 20 . . 5 Destroy Leader 32 | . 32 . . . Successful Hack 9 | . 9 . . . Destroy Structure 19 | . 19 . . . Influence Decreases 285 | . 199 61 . 25 Entered New Map 38 | . . 38 . . Time Decay 237 | . 189 23 . 25 Lost Part 10 | . 10 . . . Squads Dispatched 4 | . 4 . . . Investigation 3 | . 3 . . . Extermination . | . . . . . Reinforcement 1 | . 1 . . . Assault . | . . . . . Garrison . | . . . . . Intercept . | . . . . . Searches Triggered . | . . . . . Construction Impeded . | . . . . . Haulers Reinforced . | . . . . . Active Scanning Responses . | . . . . . Cargo Convoy Interrupts . | . . . . . Stealth | -11 -10 -10 -10 -9 --------- Run | Yrd Mat Min Exi Min Distress Signals 1 | . 1 . . . Communications Jammed . | . . . . . Distress Signals . | . . . . . Times Spotted 27 | . 17 . 7 3 Peak Tracking Total 9 | . 8 . 9 2 Tactical Retreats . | . . . . . Traps | -11 -10 -10 -10 -9 ------- Run | Yrd Mat Min Exi Min Traps Triggered 2 | . 2 . . . Indirectly . | . . . . . Trap Hack Attempts . | . . . . . Triggered . | . . . . . Disarmed . | . . . . . Reprogrammed . | . . . . . Reused . | . . . . . Traps Extracted . | . . . . . Installed . | . . . . . Triggered . | . . . . . Machines | -11 -10 -10 -10 -9 ---------- Run | Yrd Mat Min Exi Min Machines Disabled 3 | . 2 . 1 . Max in Single Turn 1 | . 1 . 1 . Machines Repaired . | . . . . . Machines Dismantled . | . . . . . Machines Sabotaged . | . . . . . Overloaded Fab Kills . | . . . . . Hacking | -11 -10 -10 -10 -9 --------- Run | Yrd Mat Min Exi Min Machines Accessed 9 | . 6 1 2 . Terminals 6 | . 5 1 . . Fabricators . | . . . . . Repair Stations . | . . . . . Recycling Units 1 | . 1 . . . Scanalyzers . | . . . . . Garrison Access . | . . . . . Total Hacks 24 | . 19 3 2 . Successful 10 | . 8 . 2 . Failed 13 | . 10 3 . . Catastrophic 4 | . 2 2 . . Database Lockouts 1 | . 1 . . . Manual 17 | . 13 3 1 . Terminals 19 | . 16 3 . . Fabricators . | . . . . . Repair Stations . | . . . . . Recycling Units 3 | . 3 . . . Scanalyzers . | . . . . . Garrison Access . | . . . . . Terminal Hacks 4 | . 2 . 2 . Record 1 | . . . 1 . Robot Analysis 1 | . 1 . . . Zone Layout 1 | . 1 . . . Proto ID Catalog 1 | . . . 1 . Fabricator Hacks . | . . . . . Repair Station Hacks . | . . . . . Recycling Unit Hacks 3 | . 3 . . . Process 1 | . 1 . . . Report Inventory 1 | . 1 . . . Retrieve Matter 1 | . 1 . . . Scanalyzer . | . . . . . Garrison Access Hacks . | . . . . . Unauthorized Hacks 3 | . 3 . . . Terminals 3 | . 3 . . . Assimilate 1 | . 1 . . . Botnet 2 | . 2 . . . Fabricators . | . . . . . Repair Stations . | . . . . . Recycling Units . | . . . . . Scanalyzers . | . . . . . Garrison Access . | . . . . . Data Cores Recovered . | . . . . . Used . | . . . . . Hacking Detections 7 | . 6 1 . . Full Trace Events 3 | . 2 1 . . Feedback Events . | . . . . . Feedback Blocked . | . . . . . Robot Schematics Acquired . | . . . . . Robots Built . | . . . . . Authchips . | . . . . . Time . | . . . . . Total Robot Build Rating . | . . . . . Part Schematics Acquired . | . . . . . Parts Built . | . . . . . Authchips . | . . . . . Time . | . . . . . Total Part Build Rating . | . . . . . Part Studies Acquired . | . . . . . Parts Repaired . | . . . . . Time . | . . . . . Parts Recycled . | . . . . . Recycled Matter 15 | . 15 . . . Retrieved Matter 15 | . 15 . . . Retrieved Components . | . . . . . Parts Scanalyzed . | . . . . . Part Schematics Acquired . | . . . . . Parts Damaged . | . . . . . Bothacking | -11 -10 -10 -10 -9 ------------ Run | Yrd Mat Min Exi Min Used RIF Installer . | . . . . . Robots Hacked . | . . . . . Non-combat . | . . . . . Combat . | . . . . . Robot Hacks Applied . | . . . . . Relay Couplers Released . | . . . . . Fabnet Peak Effective % . | . . . . . Robots Rewired . | . . . . . Allies Hacked . | . . . . . Hacks Repelled . | . . . . . Allies | -11 -10 -10 -10 -9 -------- Run | Yrd Mat Min Exi Min Total Allies . | . . . . . Largest Group . | . . . . . Highest-Rated Group . | . . . . . Highest-Rated Ally . | . . . . . Total Orders . | . . . . . Ally Attacks . | . . . . . Total Damage . | . . . . . Kills . | . . . . . Allies Corrupted . | . . . . . Allies Melted . | . . . . . Intel | -11 -10 -10 -10 -9 ------- Run | Yrd Mat Min Exi Min Active Infowar (turns) . | . . . . . Robot Analysis Total 1 | . 1 . . . Derelict Logs Recovered 1 | . . 1 . . Drone Launches . | . . . . . Drone Recoveries . | . . . . . Exploration | -11 -10 -10 -10 -9 ------------- Run | Yrd Mat Min Exi Min Turns Passed 2050 | 67 456 358 665 504 Spaces Moved 1440 | 64 348 374 440 214 Core 5 | 4 . . . 1 Treads . | . . . . . Legs . | . . . . . Wheels 1435 | 60 348 374 440 213 Hover . | . . . . . Flight . | . . . . . Fastest Speed 50 | 50 90 95 80 50 Average Speed 126 | 87 95 95 147 200 Slowest Speed 230 | 90 105 95 230 230 Overloaded Moves . | . . . . . Propulsion Burnouts . | . . . . . Robots Hopped . | . . . . . Potential Cave-ins . | . . . . . Cave-ins Triggered . | . . . . . Exploration Rate (%) 50 | 5 57 93 69 27 Regions Visited 4 Branch Regions 3 Pre-discovered Areas 2 | . . 1 1 . Known Exits Taken . | . . . . . Unknown Exits Taken 4 | 1 1 1 1 . Scrap Searched 3 | . . 2 . 1 Spaces Dug . | . . . . . Terrain Destroyed 25 | . 24 . . 1 Melee . | . . . . . Projectile 1 | . . . . 1 AOE 24 | . 24 . . . Terrain Rammed . | . . . . . Walls Destroyed . | . . . . . Machines Disabled . | . . . . . Actions | -11 -10 -10 -10 -9 --------- Run | Yrd Mat Min Exi Min Total 1600 | 71 417 379 457 276 Wait 16 | . 3 . . 13 Move 1436 | 63 347 373 439 214 Hop . | . . . . . Pick Up 46 | 1 17 3 14 11 Fast Attach 10 | 6 1 . 1 2 Attach 4 | . 1 . . 3 Detach . | . . . . . Swap 15 | 1 8 . . 6 Drop 29 | . 7 3 2 17 Fire 44 | . 33 . 1 10 Melee . | . . . . . Ram . | . . . . . Kick . | . . . . . Crush . | . . . . . Escape Stasis . | . . . . . Rewire . | . . . . . Trap . | . . . . . Miscellaneous . | . . . . . Route ------- -11/Scrapyard -10/Materials (discovered 3 exits: [*Mat] / *Min x2) -10/Mines (discovered 3 exits: [*Mat] / *Exi / [*Sub]) -10/Exiles -9/Mines History --------- Turn | Location | Event 5 | -11/Scrapyard | Discovered new exit (range 16) 68 | -11/Scrapyard | Entered Materials 167 | -10/Materials | Discovered new exit (range 13) 182 | -10/Materials | Central database locked down 251 | -10/Materials | Discovered new exit (range 16) 313 | -10/Materials | Build established: Mutant 411 | -10/Materials | Discovered new exit (range 12) 524 | -10/Materials | Entered Mines 525 | -10/Mines | Learned location of Storage (-8) 526 | -10/Mines | Discovered new exit (range 11) 580 | -10/Mines | Learned Materials trap positions 738 | -10/Mines | Discovered new exit (range 6) 784 | -10/Mines | Found a damaged Exp. Sensor Array with a note attached 787 | -10/Mines | Found Prototype Device 840 | -10/Mines | Received a Rocket Launcher from a helpful Derelict 854 | -10/Mines | Deemed a non-threat by the Exiles lab entrance 854 | -10/Mines | Discovered new exit (range 5) 882 | -10/Mines | Entered Exiles 906 | -10/Exiles | Met 8R-AWN 922 | -10/Exiles | Met EX-HEX 950 | -10/Exiles | Met EX-BIN 961 | -10/Exiles | Aligned with FarCom system 962 | -10/Exiles | Given EX-Vault access code 984 | -10/Exiles | Opened EX-Vault 1010 | -10/Exiles | Warned to stay clear of 0b10 Research branches 1035 | -10/Exiles | Met EX-DEC 1043 | -10/Exiles | Learned location of Zion (-6) 1330 | -10/Exiles | Found Latent Energy Streamer 1335 | -10/Exiles | Found Cloak of Protection 1338 | -10/Exiles | Found 0b10 Alert Chip 1425 | -10/Exiles | Build established: Hauler-Mutant 1490 | -10/Exiles | Attacked by the Exiles 1531 | -10/Exiles | Discovered new exit (range 10) 1541 | -10/Exiles | Core integrity fell below 50% 1547 | -10/Exiles | Stole three prototypes: 0b10 Alert Chip, Cloak of Protection, Latent Energy Streamer 1547 | -10/Exiles | Entered Mines 1654 | -9/Mines | Joined a pair of Derelicts in attacking an 0b10 outpost 2045 | -9/Mines | Core integrity fell below 20% 2051 | -9/Mines | Destroyed by YI-UF0 with YI-UF0's Doublenader Last Messages --------------- 01968_ Dropped Imp. Targeting Computer. 01969_ Dropped Cloak of Protection. 01969_ Dropped Wheel. 01984_ Dropped Humpback. 01985_ Acquired Med. Armor Plating. 01986_ Dropped Prototype Device. 02002_ Acquired Core Shielding. 02019_ Acquired 73 matter. 02037_ The unstable cave ceiling collapses. 02038_ Lgt. EM Pulse Cannon destroyed. 02040_ The unstable cave ceiling collapses. 02040_ Med. Armor Plating destroyed. 02040_ Lgt. Ion Engine destroyed. 02040_ Wheel destroyed. 02044_ Com. Wheel destroyed. 02046_ YI-UF0 mumbles something. 02046_ Beamcaster destroyed. 02047_ The unstable cave ceiling collapses. 02048_ Assault Rifle destroyed. 02049_ The unstable cave ceiling collapses. Map ----- +----------------------------------------------------+ | #####????????????????????????????????????????????? | | #????????????????????????????????????????????? | | #????????????????????????????????????????????? | | "" #???????????????#????????????????????????????? | | "" #?????????????? ###??????????????????????????? | | "" #?????????????? ???????????????????????????? | | #????????????# #???????????????????????????? | | #????????????# #???????????????????????????? | | #???????????? ????????????????????????????? | | ####???????###### #????????????????????????????? | | #?????????## ## #?????##?????????????????????? | | #?????????# ##?? ##????????????????????? | | [#?????????# ## #????????????????????? | | %#????????## #????????????????????? | | ####???### ]/] #?????????????????????????? | | #??## ]!/ ####?????????????????????????? | | ### #### [!] ##????????????????????????????? | | ??# ##????????????????????????????? | | ??# #????????????????????????????? | | ??##### ! ########?????????????????????? | | ??????# =!!! ## ### #?????????????????????? | | ??????##!!**!######## ##????????????????????? | | ?#######!!!! ##????# ##???????????????????? | | ## ## ! ####?# ##??????????????????? | | # ! #% ### # #??????????????????? | | # %+ # !!!= @ #??????????????????? | | #% +% # = = g #?????????????? ???? | | #" #= # ### # #??????????? ??? | | ##/ ## #?# #??????? % ? | | ?####### #### ### ???? | | ???????## #### # = #?????????? | | ????????#### ## ###### ##?????????? | | ???????????####### #???# # #??????????? | | ?????????????????## #???? # ###??????????? | | ??????????????????## ##????##?#####????????????? | | ??????????????????## #????????????????????????? | | ??????????????????# #????????????????????????? | | ?????????????????## #????????????????????????? | | ?????????????????# ##????????????????????????? | | ?????????????????# #?????????????????????????? | | ?????????????????## ##????????????????????????? | | ??????????????????## #????????????????????????? | | ???????????????????# #????????????????????????? | | ???????????????????## ##????????????????????????? | | ????????????????????####?????????????????????????? | | ?????????????????????????????????????????????????? | | ?????????????????????????????????????????????????? | | ?????????????????????????????????????????????????? | | ?????????????????????????????????????????????????? | | ?????????????????????????????????????????????????? | +----------------------------------------------------+ Best States ------------- Heat Dissipation 25 Energy Generation 10 Energy Capacity 250 Matter Stores 300 Matter Capacity 300 Sight Range 16 Terrain Scan Density 10 Armor Coverage 225 Core Shielding 20 Evasion (%) 45 Targeting Accuracy 5 Item Schematics ----------------- None Robot Schematics ------------------ None Fabricated ------------ Nothing Repaired ---------- Nothing Studied --------- None Alien Tech Used ----------------- None Achievements -------------- None Challenges ------------ None Game ------ Seed ZioniteExpertMesh Manual? 0 Play Time 00:13:06 Cumulative 298.1 hours Start 2025.11.19 @ 14:31:17 End 2025.11.19 @ 14:44:00 Sessions 1 Manual Loads 0 Difficulty Rogue Special Mode None Game No. 315 Rogue 311 Adventurer 3 Explorer 1 Win Type - Total 2 Types 2/0/0/0/0/0/0/0/0/0 Lore% 79 Gallery% 76 Achievement% 62 Wizard Run 0 Options --------- Layout 0 ASCII 0 Keyboard 0 Movement Mouse Keybinds 0 Fullscreen 2 Font 18/SmallcapsGlow Map View 76x50 Zoom Use 0% Tactical HUD 1 Map Filters NONE Filters NONE Steam 1 RUN: fa0a6011-9d2f-44e6-93e4-cfb9193f58c2